[Event "1st Serbian League 2022"]
[Site "Vrnjacka Banja"]
[Date "2022.09.22"]
[Round "3.1"]
[White "Demchenko, Anton"]
[Black "Predojevic, Borki"]
[Result "1/2-1/2"]
[ECO "C13"]
[WhiteElo "2645"]
[BlackElo "2584"]
[Annotator "TA"]
[PlyCount "86"]
[EventDate "2022.09.20"]
[EventType "team-tourn"]
[EventCountry "SRB"]
[SourceTitle "playchess.com"]
[Source "ChessBase"]
[SourceQuality "1"]
[TimeControl "40/5400+30:1800+30"]

{[%evp 15,86,18,20,20,16,20,18,22,25,20,20,20,20,20,18,10,0,0,0,0,0,0,0,0,0,0,18,16,18,22,17,12,9,0,0,0,0,0,17,9,9,9,15,0,0,0,0,0,0,0,0,0,0,0,0,0,0,0,0,0,0,0,0,0,0,0,0,0,0,0,0,0,0]} 1. e4 {[%emt 0:00:03]} e6 {[%emt 0:00:12]} 2. d4 {[%emt 0:00:05]} d5 {[%emt 0:00:07]} 3. Nc3 {[%emt 0:00:04]} Nf6 {[%emt 0:00:29]} 4. Bg5 {[%emt 0:00:06]} dxe4 {[%emt 0:00:15]} 5. Nxe4 {[%emt 0:00:05]} Be7 {[%emt 0:00:09]} 6. Nxf6+ {[%emt 0:00:06]} Bxf6 {[%emt 0:00:14]} 7. Bxf6 {[%emt 0:00:04]} Qxf6 {[%emt 0:00:08]} 8. Nf3 {[%emt 0:00:03]} O-O {[%emt 0:09:12][%cal Oc7c5]} 9. Qd3 $1 {[%emt 0:00:05][%mdl 4] is now more promising than 9.Bd3. C13: French: Classical System: 4 Bg5 Be7, Alekhine-Chatard Attack.} Rd8 {[%emt 0:00:04]} 10. O-O-O {[%emt 0:00:07]} Bd7 {[%emt 0:00:02]} 11. Rd2 {[%emt 0:02:37]} Nc6 {[%emt 0:29:07]} 12. Qe4 {[%emt 0:00:35]} Nb4 {[%emt 0:07:59] The position is equal.} 13. Ne5 {[%emt 0:01:01]} (13. Qxb7 Nxa2+ 14. Kb1 {[#]} Nc3+ $1 15. Ka1 (15. bxc3 $2 Rab8 $19) 15... Qe7 $17) 13... Bc6 {[%emt 0:00:23]} ({Don't play} 13... Nxa2+ 14. Kb1 Nb4 15. Nxd7 $16 (15. Qxb7 Rab8 $11)) 14. Nxc6 {[%emt 0:00:10]} Nxc6 {[%emt 0:00:05]} 15. c3 {[%emt 0:02:03][%cal Bc2c3,Bc3c4][%mdl 32]} e5 {[%emt 0:06:12][%cal Re5d4] [#]} 16. Bd3 $146 {[%emt 0:00:29] Threatens to win with Re1.} ({Predecessor:} 16. d5 Ne7 17. Bc4 Nc8 18. Bd3 g6 19. Re1 Re8 20. Qf3 Qxf3 21. gxf3 f6 22. c4 {½-½ (46) Fasser,W (2208)-Raessler,A (2341) ICCF email 2016}) 16... g6 {[%emt 0:00:07][%cal Re5d4]} 17. d5 {[%emt 0:00:08]} Ne7 {[%emt 0:00:58]} 18. c4 {[%emt 0:00:11]} c6 {[%emt 0:32:02][%cal Rc6d5]} 19. Re1 {[%emt 0:00:15]} cxd5 {[%emt 0:02:13]} 20. Qxe5 {[%emt 0:00:09]} Qxe5 {[%emt 0:04:01]} 21. Rxe5 {[%emt 0:00:05]} dxc4 {[%emt 0:00:19] [#] Hoping for ...Nc6.} 22. Rxe7 {[%emt 0:02:30]} cxd3 {[%emt 0:00:59]} 23. Rxb7 $11 {[%emt 0:00:09][%mdl 4096] Endgame KRR-KRR} Rd5 {[%emt 0:02:18]} 24. Re7 {[%emt 0:05:51]} a5 {[%emt 0:00:52]} 25. Re3 {[%emt 0:02:38]} Rad8 {[%emt 0:02:33]} 26. b3 {[%emt 0:00:14]} a4 {[%emt 0:01:06]} 27. Kb2 {[%emt 0:18:56]} axb3 {[%emt 0:00:07]} 28. axb3 {[%emt 0:00:03]} h5 {[%emt 0:00:51]} 29. b4 {[%emt 0:02:11]} Kg7 {[%emt 0:01:04]} 30. Kc3 {[%emt 0:02:05][%cal Re3d3]} Rc8+ {[%emt 0:00:06]} 31. Kb3 {[%emt 0:00:05]} Rcd8 {[%emt 0:00:10]} 32. g3 {[%emt 0:11:20]} R5d6 {[%emt 0:00:25]} 33. h4 {[%emt 0:03:57]} Kf6 {[%emt 0:00:16]} 34. Re4 {[%emt 0:01:20]} R8d7 {[%emt 0:01:10]} 35. Kc3 {[%emt 0:04:27]} Rd8 {[%emt 0:00:29]} 36. b5 {[%emt 0:11:07][%cal Bb4b5,Bb5b6][%mdl 32]} Rb8 {[%emt 0:00:26]} 37. Rb4 {[%emt 0:00:31]} Rd5 {[%emt 0:00:33]} 38. Kc4 {[%emt 0:00:48]} Ke6 {[%emt 0:01:14]} 39. b6 {[%emt 0:04:35]} Rd6 {[%emt 0:00:05]} 40. Kc5 {[%emt 0:02:21]} Kd7 {[%emt 0:00:30]} 41. b7 {[%emt 0:36:22] And now Rb6 would win.} Kc7 {[%emt 0:30:48] Against Rb6} 42. Rb3 {[%emt 0:06:36]} Rd7 {[%emt 0:00:00]} 43. Kc4 {[%emt 0:00:00]} Rxb7 {[%emt 0:00:00] A balanced but interesting game.  Weighted Error Value: White=0.01 (flawless) /Black=0.01 (flawless)} 1/2-1/2

[Event "1st Serbian League 2022"]
[Site "Vrnjacka Banja"]
[Date "2022.09.22"]
[Round "3.2"]
[White "Bogosavljevic, Boban"]
[Black "Atalik, Suat"]
[Result "1-0"]
[ECO "D78"]
[WhiteElo "2533"]
[BlackElo "2436"]
[Annotator "TA"]
[PlyCount "185"]
[EventDate "2022.09.20"]
[EventType "team-tourn"]
[EventCountry "SRB"]
[SourceTitle "playchess.com"]
[Source "ChessBase"]
[SourceQuality "1"]
[TimeControl "40/5400+30:1800+30"]

{[%evp 18,184,15,12,19,19,16,16,14,6,21,9,23,17,20,16,31,34,37,38,87,84,85,85,98,98,95,94,98,98,98,85,82,102,118,120,126,114,127,92,143,111,118,87,106,86,86,89,77,75,89,81,94,49,49,49,58,49,51,51,78,71,75,68,191,170,191,191,222,246,273,264,281,247,211,211,339,339,339,339,339,339,339,339,339,339,339,310,310,310,339,339,346,351,552,552,472,352,552,552,552,633,552,552,592,600,571,325,462,499,1289,1220,1601,1488,2267,2158,2892,1724,8930,9015,6420,6420,5743,5158,1910,690,1568,1465,5535,1909,1696,1301,5531,5764,3110,2306,10150,6957,10391,9529,5860,4710,29986,4375,2450,5614,6877,6873,5852,5614,3551,3309,2593,2728,29960,29957,29969,1644,29960,0,0,0,12805,466,29996,29997,29997,29998,29999]} 1. Nf3 {[%emt 0:02:25]} Nf6 {[%emt 0:00:22]} 2. g3 {[%emt 0:00:20]} g6 {[%emt 0:00:34]} 3. Bg2 {[%emt 0:00:11]} Bg7 {[%emt 0:00:11]} 4. O-O {[%emt 0:00:17]} O-O {[%emt 0:00:27]} 5. d4 {[%emt 0:00:15]} d5 {[%emt 0:00:24]} 6. c4 {[%emt 0:00:12]} c6 {[%emt 0:00:30]} 7. b3 {[%emt 0:07:03]} Bf5 {[%emt 0:07:36]} 8. Bb2 {[%emt 0:01:31]} a5 {[%emt 0:00:40]} 9. Nc3 {[%emt 0:02:38]} Ne4 {[%emt 0:00:29]} 10. e3 {[%emt 0:01:30]} Nxc3 {[%emt 0:01:55] D78: Fianchetto Grünfeld: 6 0-0 c6.} 11. Bxc3 {[%emt 0:02:28]} Be4 {[%emt 0:00:06]} 12. Qe2 {[%emt 0:11:01]} e6 {[%emt 0:01:56] The position is equal.} 13. Rfc1 {[%emt 0:03:27] [#]} Re8 $146 {[%emt 0:02:15]} ({Predecessor:} 13... Nd7 14. Bh3 Bxf3 15. Qxf3 Nf6 16. Qe2 Ne4 17. Be1 Qe7 18. Bg2 Nd6 19. Rab1 Rfd8 {0-1 (41) Oparin,G (2652)-Artemiev,V (2716) Chess.com INT 2020}) 14. Bh3 {[%emt 0:05:33]} Bxf3 {[%emt 0:02:49]} 15. Qxf3 {[%emt 0:00:07]} Nd7 {[%emt 0:00:33]} 16. Bf1 {[%emt 0:07:45]} Nb6 {[%emt 0:04:46]} 17. Rab1 {[%emt 0:11:27][%cal Ba1b1,Bb1b4,Bb4b6][%mdl 32]} Re7 {[%emt 0:16:12]} 18. Qd1 {[%emt 0:03:31]} Rd7 {[%emt 0:03:21]} (18... h5 $14) 19. c5 $16 {[%emt 0:08:00]} Nc8 {[%emt 0:00:21]} 20. a4 {[%emt 0:00:17]} Ne7 {[%emt 0:07:53]} 21. b4 {[%emt 0:03:21]} axb4 {[%emt 0:00:20]} 22. Rxb4 {[%emt 0:00:06]} h5 {[%emt 0:02:09]} 23. Rcb1 {[%emt 0:01:21]} Ra7 {[%emt 0:01:33]} 24. Rb6 {[%emt 0:01:39]} Nc8 {[%emt 0:45:08]} 25. R6b2 {[%emt 0:01:28]} Kh7 {[%emt 0:00:00]} 26. a5 {[%emt 0:00:37]} Ne7 {[%emt 0:00:00]} 27. Bd3 {[%emt 0:09:31]} f5 {[%emt 0:00:00]} 28. Rb6 {[%emt 0:00:58]} Qh8 {[%emt 0:00:00]} (28... Qe8 $142) 29. f4 {[%emt 0:02:35]} Bf6 {[%emt 0:00:00]} 30. R1b2 {[%emt 0:02:16]} Qg7 {[%emt 0:00:00]} 31. Kh1 {[%emt 0:02:38] White is much more active.} Nc8 {[%emt 0:03:30]} 32. R6b3 {[%emt 0:00:11]} Bd8 {[%emt 0:00:00]} 33. Qe1 {[%emt 0:05:03]} Ne7 {[%emt 0:00:00][%cal Bc8e7,Be7g8,Bg8f6,Bf6e4][%mdl 32]} 34. h3 {[%emt 0:01:06][%cal Bh2h3,Bh3h4][%mdl 32]} Ng8 {[%emt 0:00:00]} 35. h4 {[%emt 0:04:39]} Nf6 {[%emt 0:00:00]} 36. Kg2 {[%emt 0:00:07]} Qf7 {[%emt 0:00:00]} 37. Ra2 {[%emt 0:00:54]} Ne4 {[%emt 0:00:00][%cal Oe6e5]} 38. Bb4 {[%emt 0:00:19]} Bf6 {[%emt 0:00:00]} 39. Qd1 {[%emt 0:00:35]} Qe8 {[%emt 0:00:00]} 40. Be1 {[%emt 0:00:24]} Qa8 {[%emt 0:00:00] [#]} ({Black should play} 40... Kh6 $14) 41. Qb1 $1 $18 {[%emt 0:01:32]} Qe8 {[%emt 0:06:33]} 42. a6 {[%emt 0:07:57][%cal Ra6b7]} bxa6 {[%emt 0:00:20]} 43. Rb8 {[%emt 0:00:28]} ({Don't play} 43. Rxa6 Qc8 44. Rbb6 Rxa6 45. Bxa6 (45. Rxa6 Rb7 $16) 45... Qa8) (43. Bxa6 $6 Rac7 44. Rb8 Qf7) 43... Qe7 {[%emt 0:02:14]} 44. Rxa6 {[%emt 0:02:04]} Rab7 {[%emt 0:01:16]} 45. Rxb7 {[%emt 0:00:20]} Rxb7 {[%emt 0:00:18]} 46. Rb6 {[%emt 0:00:27]} Rc7 {[%emt 0:00:32]} (46... Rxb6 $142 47. Qxb6 (47. cxb6 Qb7 $16) 47... Qd7) 47. Ba6 {[%emt 0:00:47][%cal Bd3a6,Ba6b7,Bb7c6,Bc6a4][%mdl 32]} Kg7 {[%emt 0:01:19]} 48. Rb7 {[%emt 0:00:31]} Rxb7 {[%emt 0:00:15]} 49. Qxb7 {[%emt 0:00:45]} Qxb7 {[%emt 0:00:13]} 50. Bxb7 {[%emt 0:00:05][%mdl 4096] Endgame KBB-KBN} Bd8 {[%emt 0:00:09]} 51. Bxc6 {[%emt 0:00:17]} Kf7 {[%emt 0:01:02]} 52. Kf3 {[%emt 0:01:18]} Nf6 {[%emt 0:00:42]} 53. Ke2 {[%emt 0:00:19]} Ng4 {[%emt 0:00:33]} 54. Kd3 {[%emt 0:00:31] And now Bb5 would win.} Ke7 {[%emt 0:00:16]} 55. Ba4 {[%emt 0:00:22]} Bc7 {[%emt 0:00:24]} (55... Kf6 $142 56. Be8 Kg7) 56. Bd2 {[%emt 0:01:09]} Nh2 {[%emt 0:00:50]} 57. Bd1 {[%emt 0:02:01]} Kd7 {[%emt 0:00:07]} (57... Nf1 {might work better.} 58. Be1 Nh2) 58. Be2 {[%emt 0:00:28]} Kc6 {[%emt 0:00:51]} 59. Kc2 {[%emt 0:00:15]} Ng4 {[%emt 0:00:15]} 60. Kb3 {[%emt 0:00:22]} Nf6 {[%emt 0:00:22]} 61. Ka4 {[%emt 0:00:22]} Bd8 {[%emt 0:00:45]} 62. Ba6 {[%emt 0:01:20]} Ne4 {[%emt 0:03:00]} (62... Kd7 {keeps fighting.} 63. Bb5+ Kc8) 63. Be1 {[%emt 0:00:13]} e5 {[%emt 0:00:11]} (63... Nf6 $142 64. Bc8 Ng4 65. Bxe6 Nxe3) 64. fxe5 {[%emt 0:01:42][%cal Bf4e5,Be5e6][%mdl 32]} g5 {[%emt 0:00:04]} 65. Bb5+ {[%emt 0:01:44]} Kb7 {[%emt 0:00:31]} 66. e6 {[%emt 0:01:23]} gxh4 {[%emt 0:01:29]} 67. gxh4 {[%emt 0:00:08]} Bf6 {[%emt 0:00:27]} 68. c6+ {[%emt 0:00:51]} Kb8 {[%emt 0:00:04]} 69. Ba5 {[%emt 0:00:27] [#] Intending c7+ and mate.} Nd6 {[%emt 0:00:15]} 70. Ba6 {[%emt 0:06:39] c7+ would kill now.} Ne8 {[%emt 0:00:26] Prevents c7+.} 71. Bd3 {[%emt 0:02:49]} (71. Bb4 $142 Bxh4 72. Be2) 71... Bxh4 {[%emt 0:00:49]} 72. Bxf5 {[%emt 0:00:20] Hoping for Bb4. A strong pair of Bishops.} Bf6 {[%emt 0:01:01]} 73. Bh3 {[%emt 0:00:57]} (73. Bb4 $142 Kc7 74. Kb5 Nd6+ 75. Bxd6+ Kxd6 76. Kb6 Bd8+ 77. Kb7) 73... Be7 {[%emt 0:00:44]} 74. Bb6 {[%emt 0:01:49]} h4 {[%emt 0:00:36]} 75. Bc5 {[%emt 0:01:54]} Nd6 {[%emt 0:01:08]} 76. Bg2 {[%emt 0:01:06] Black must now prevent Kb4.} Nf5 {[%emt 0:00:26]} 77. Kb5 {[%emt 0:01:18] Threatens to win with Bxe7.} Kc7 {[%emt 0:00:24]} 78. Bb6+ {[%emt 0:00:33]} Kc8 {[%emt 0:00:05]} 79. Bxd5 {[%emt 0:01:24]} h3 {[%emt 0:01:31]} 80. c7 {[%emt 0:00:21]} (80. Ka6 $142 Nxe3 81. Bf3 Bd8 82. e7 Bxe7 83. c7 Kd7 84. Bb7 Ke6 85. c8=Q+ Kf6 86. Qh8+ Kf7 87. Qxh3) 80... Bd6 {[%emt 0:00:34]} 81. Be4 {[%emt 0:01:22]} Ne7 {[%emt 0:02:29]} 82. Ka6 {[%emt 0:00:21][%csl Ga6][%cal Re4b7]} Bxc7 {[%emt 0:00:05]} 83. Bc5 {[%emt 0:00:09]} Kd8 {[%emt 0:00:57]} 84. Kb7 {[%emt 0:00:18] White wants to mate with Bxe7+.} Bg3 {[%emt 0:00:13]} 85. Bf3 {[%emt 0:00:53] e4 is the strong threat.} h2 {[%emt 0:04:15]} 86. e4 {[%emt 0:00:09]} Bf2 {[%emt 0:00:24]} 87. e5 {[%emt 0:00:39]} (87. Bb6+ $142 Ke8 88. d5 Bxb6 89. Kxb6 Nc8+ 90. Kc5 Ne7 91. d6 h1=Q 92. Bxh1) 87... Nf5 {[%emt 0:00:52]} 88. Bb6+ $2 {[%emt 0:00:53]} (88. Bb4 {mates} Bxd4 89. Bc6 Bc3 90. Bxc3 Ng7 91. Be1 Ke7 92. Bg3 Nxe6 93. Bxh2) 88... Ke7 $11 {[%emt 0:01:53]} 89. Bc5+ $2 {[%emt 0:00:09][%mdl 8192]} (89. d5 $11 Nh4 90. d6+ (90. Bxf2 Nxf3 91. Bc5+ Kd8 $11) 90... Kxe6 91. Bc6 Bxb6 92. Kxb6) 89... Kd8 $18 {[%emt 0:00:54]} 90. Be4 {[%emt 0:00:58]} (90. Bb4 $142 {Threatening mate with d5.} Bxd4 91. Bc6) 90... Nxd4 {[%emt 0:01:11]} (90... Bxd4 $18 91. e7+ Nxe7 92. Bxd4 Kd7) 91. e7+ {[%emt 0:00:15] White mates.} Kd7 {[%emt 0:00:06]} 92. e6+ {[%emt 0:00:10]} Nxe6 {[%emt 0:00:41]} 93. Bc6# {[%emt 0:00:08] Weighted Error Value: White=0.08 (flawless) /Black=0.22 (precise)} 1-0

[Event "1st Serbian League 2022"]
[Site "Vrnjacka Banja"]
[Date "2022.09.22"]
[Round "3.3"]
[White "Vucinic, Gojko"]
[Black "Vuckovic, Bojan"]
[Result "0-1"]
[ECO "B33"]
[WhiteElo "2380"]
[BlackElo "2559"]
[Annotator "TA"]
[PlyCount "86"]
[EventDate "2022.09.20"]
[EventType "team-tourn"]
[EventCountry "SRB"]
[SourceTitle "playchess.com"]
[Source "ChessBase"]
[SourceQuality "1"]
[TimeControl "40/5400+30:1800+30"]

{[%evp 25,86,50,49,22,20,14,25,25,18,0,0,0,0,0,0,-7,-8,-14,0,0,0,0,0,-22,-22,-22,-22,-25,0,0,0,0,0,0,0,0,0,0,0,0,0,0,0,0,0,0,0,0,0,-318,-318,-318,-308,-318,-318,-318,-318,-368,-352,-1648,-1088,-1834,-924]} 1. e4 {[%emt 0:02:30]} c5 {[%emt 0:00:11]} 2. Nf3 {[%emt 0:00:11]} Nc6 {[%emt 0:00:13]} 3. d4 {[%emt 0:00:04]} cxd4 {[%emt 0:00:07]} 4. Nxd4 {[%emt 0:00:03]} Nf6 {[%emt 0:00:09]} 5. Nc3 {[%emt 0:00:03]} e5 {[%emt 0:00:07]} 6. Ndb5 {[%emt 0:00:04]} d6 {[%emt 0:00:06]} 7. Bg5 {[%emt 0:00:07]} a6 {[%emt 0:00:05]} 8. Na3 {[%emt 0:00:02]} b5 {[%emt 0:00:07]} 9. Bxf6 {[%emt 0:00:05]} gxf6 {[%emt 0:00:07][%cal Bg7f6,Bf6f5][%mdl 32]} 10. Nd5 {[%emt 0:00:06]} f5 {[%emt 0:00:45]} 11. Bd3 {[%emt 0:00:18]} Be6 {[%emt 0:00:43]} 12. O-O {[%emt 0:00:39]} Bxd5 {[%emt 0:00:40]} 13. exd5 {[%emt 0:00:05]} Ne7 $1 {[%emt 0:00:06]} 14. Re1 {[%emt 0:01:36] B33: Sicilian: Pelikan and Sveshnikov Variations.} Bg7 {[%emt 0:00:57]} 15. c3 {[%emt 0:00:09]} O-O {[%emt 0:01:45]} 16. Nc2 {[%emt 0:02:21] White has an edge.} Qd7 {[%emt 0:10:01]} 17. a4 {[%emt 0:14:42]} e4 {[%emt 0:10:52]} ({Don't play} 17... Nxd5 18. axb5 axb5 19. Bxf5 $1 Qxf5 20. Rxa8 Rxa8 21. Qxd5 $16) 18. Bf1 {[%emt 0:00:07]} bxa4 {[%emt 0:00:20]} 19. Nb4 {[%emt 0:06:07]} Qb7 {[%emt 0:10:35]} 20. Qxa4 {[%emt 0:14:07][%cal Rf1a6]} a5 {[%emt 0:00:51]} 21. Nc6 {[%emt 0:00:04]} Nxc6 {[%emt 0:09:25]} 22. dxc6 {[%emt 0:01:33]} Qxb2 {[%emt 0:02:39] [#]} 23. Rab1 $146 {[%emt 0:00:41]} ({Predecessor:} 23. c7 Qb7 24. Qd7 Bxc3 25. Qxd6 Bxa1 26. Rxa1 Qb2 27. Rd1 a4 28. Qd7 a3 29. Rd2 {0-1 (37) Mergard,H (2211)-Nersesian,V ICCF email 2014}) 23... Qxc3 {[%emt 0:06:30]} 24. Rec1 {[%emt 0:00:04]} Qd4 {[%emt 0:00:22]} 25. Rc4 {[%emt 0:00:05]} Qe5 {[%emt 0:00:21]} 26. c7 {[%emt 0:02:40]} Rfc8 {[%emt 0:11:34] Hoping for ...d5.} (26... d5 $5 {[%cal Rd5c4]} 27. Rcc1 Rac8 28. Qxa5 e3 $11) 27. Qc6 {[%emt 0:06:58][%cal Oc6a8] aiming for Qxa8!} d5 $1 {[%emt 0:09:32]} 28. Qxa8 {[%emt 0:05:37]} Rxa8 {[%emt 0:00:10]} 29. c8=Q+ {[%emt 0:00:08]} Rxc8 {[%emt 0:00:04]} 30. Rxc8+ {[%emt 0:00:03]} Bf8 {[%emt 0:00:07] And now ...Kg7 would win.} 31. Rbb8 {[%emt 0:00:04]} e3 {[%emt 0:03:17]} 32. Rxf8+ {[%emt 0:11:08]} Kg7 {[%emt 0:00:08]} 33. Rg8+ {[%emt 0:01:51]} Kf6 {[%emt 0:00:15]} 34. Rbe8 {[%emt 0:09:35]} exf2+ {[%emt 0:02:02]} 35. Kxf2 {[%emt 0:00:04]} Qf4+ {[%emt 0:04:06]} 36. Ke1 {[%emt 0:02:53]} a4 {[%emt 0:02:49]} 37. Rg3 $2 {[%emt 0:00:40][%mdl 8192]} (37. g3 $11 {and White has nothing to worry.} Qb4+ 38. Kf2) 37... Qb4+ $19 {[%emt 0:03:57]} 38. Kf2 {[%emt 0:03:38]} Qb6+ {[%emt 0:01:41]} ({Not} 38... a3 39. Ra8 Qd4+ 40. Ke1 Qa1+ 41. Kf2 Qb2+ 42. Kg1 $11) 39. Ke1 {[%emt 0:01:18] [#]} Qa5+ $1 {[%emt 0:00:38]} ({Avoid the trap} 39... Qb4+ $2 40. Kf2 Qb6+ 41. Kf3) 40. Kf2 {[%emt 0:06:41]} a3 {[%emt 0:00:38] White must now prevent ...a2.} 41. Rf3 {[%emt 0:30:04]} a2 {[%emt 0:35:06] Really sharp!} 42. g4 $2 {[%emt 0:01:21]} (42. Re1) 42... Qd2+ {[%emt 0:02:07]} 43. Kg3 {[%emt 0:01:02]} a1=Q {[%emt 0:00:29] Weighted Error Value: White=0.63/Black=0.37} 0-1

[Event "1st Serbian League 2022"]
[Site "Vrnjacka Banja"]
[Date "2022.09.22"]
[Round "3.4"]
[White "Roganovic, Milos"]
[Black "Milosevic, Milos"]
[Result "1/2-1/2"]
[WhiteElo "2487"]
[BlackElo "2379"]
[Annotator "TA"]
[PlyCount "31"]
[EventDate "2022.09.20"]
[EventType "team-tourn"]
[EventCountry "SRB"]
[SourceTitle "playchess.com"]
[Source "ChessBase"]
[SourceQuality "1"]
[TimeControl "40/5400+30:1800+30"]

{[%evp 12,18,43,39,109,-69,-79,-70,-64]} 1. e4 {[%emt 0:00:03]} e6 {[%emt 0:00:46]} 2. d4 {[%emt 0:01:22]} d5 {[%emt 0:00:06]} 3. e5 {[%emt 0:00:47]} c5 {[%emt 0:00:04]} 4. c3 {[%emt 0:00:04]} Nc6 {[%emt 0:00:14]} 5. Nf3 {[%emt 0:00:13]} Qb6 {[%emt 0:00:05]} 6. Be2 {[%emt 0:01:46]} Nh6 {[%emt 0:04:25]} 7. Bxh6 {[%emt 0:07:57]} Qxb2 {[%emt 0:00:58] [#] C02: French: Advance Variation.} (7... gxh6 $14 8. Qd2 Bg7) 8. Bxg7 $2 {[%emt 0:17:58]} Bxg7 $15 {[%emt 0:00:37]} 9. Nbd2 {[%emt 0:00:04]} Qxc3 {[%emt 0:01:50] [#]} {Predecessor:} 10. Rc1 $146 Qa3 11. Rxc5 Qxa2 12. O-O a5 13. Rc2 Qa4 14. Qb1 Qb4 15. Qa1 Bf8 16. Rb1 {½-½ (24) Palomares Cortez,T (1085)-Rodriguez Sanchez,J (1623) Collado Villalba 2021} 1/2-1/2

[Event "1st Serbian League 2022"]
[Site "Vrnjacka Banja"]
[Date "2022.09.22"]
[Round "3.5"]
[White "Markovic, Miroslav"]
[Black "Zajic, Milan"]
[Result "1/2-1/2"]
[ECO "A00"]
[WhiteElo "2275"]
[BlackElo "2402"]
[Annotator "TA"]
[PlyCount "59"]
[EventDate "2022.09.20"]
[EventType "team-tourn"]
[EventCountry "SRB"]
[SourceTitle "playchess.com"]
[Source "ChessBase"]
[SourceQuality "1"]
[TimeControl "40/5400+30:1800+30"]

{[%evp 9,59,-8,27,-12,22,-11,0,-15,-16,-18,-6,0,0,0,0,0,-6,-54,-63,-50,-74,-49,-53,-70,-60,-75,-52,-39,116,102,87,89,127,121,100,85,125,75,76,94,184,184,194,190,191,189,183,177,175,88,86,65]} 1. d3 {[%emt 0:00:03]} e5 {[%emt 0:01:19]} 2. c3 {[%emt 0:00:12]} Nc6 {[%emt 0:07:16]} 3. e4 {[%emt 0:01:02]} d5 {[%emt 0:01:19]} 4. Nd2 {[%emt 0:05:25]} g6 {[%emt 0:08:27]} 5. Ngf3 {[%emt 0:05:07]} Nge7 {[%emt 0:03:18]} 6. Be2 {[%emt 0:01:05] A00: Irregular Openings.} (6. b4 $5 {[%cal Rb4b5]}) 6... Bg7 {[%emt 0:00:50]} 7. O-O {[%emt 0:01:37]} a5 {[%emt 0:02:49]} 8. a4 {[%emt 0:01:56] The position is equal.} O-O {[%emt 0:01:45]} 9. Re1 {[%emt 0:00:39] [#]} d4 $146 {[%emt 0:06:40]} ({Predecessor:} 9... h6 10. Qc2 Be6 11. b3 Qd7 12. Ba3 Rfe8 13. Rad1 Rad8 14. Bf1 Qc8 15. b4 d4 {½-½ (36) Babijczuk,P (1894)-Gokhale,R (2076) Krakow 2015}) 10. Nc4 {[%emt 0:09:06]} h6 {[%emt 0:05:39]} 11. cxd4 {[%emt 0:04:21]} exd4 {[%emt 0:00:19]} 12. b3 {[%emt 0:00:13]} Nb4 {[%emt 0:04:11]} 13. Rf1 {[%emt 0:04:27]} (13. Bf4 $11) 13... f5 $15 {[%emt 0:09:57]} 14. Nfd2 {[%emt 0:00:15]} fxe4 {[%emt 0:01:54]} 15. Nxe4 {[%emt 0:00:13]} Ned5 {[%emt 0:00:34]} 16. Ba3 {[%emt 0:04:24]} Nc3 {[%emt 0:21:44]} 17. Qd2 {[%emt 0:02:02][%cal Oc4a5]} Nxe4 {[%emt 0:12:27]} 18. dxe4 {[%emt 0:00:02]} b6 $2 {[%emt 0:04:38] [#]} (18... d3 $15 {stays ahead.} 19. Bxd3 Bxa1 20. Bxb4 axb4 21. Rxa1 Qd4) 19. Bxb4 {[%emt 0:04:17]} axb4 {[%emt 0:00:17]} 20. Bd3 {[%emt 0:00:04] White is more active.} Qe7 {[%emt 0:01:11]} 21. f4 {[%emt 0:00:33]} Be6 {[%emt 0:02:06]} 22. Rae1 {[%emt 0:00:53]} Rad8 {[%emt 0:00:34]} 23. Qc2 {[%emt 0:06:11]} ({White should play} 23. e5) 23... Kh8 $16 {[%emt 0:01:53]} 24. Nd2 {[%emt 0:04:00]} Bc8 {[%emt 0:00:47]} (24... Bg8 $16 {was necessary.}) 25. e5 $18 {[%emt 0:07:12]} Bf5 {[%emt 0:00:16]} 26. Bxf5 {[%emt 0:00:37]} gxf5 {[%emt 0:00:11]} 27. Qd3 {[%emt 0:00:32]} Qe6 {[%emt 0:00:59]} 28. Rc1 {[%emt 0:00:54]} Rf7 {[%emt 0:00:25]} 29. Rc4 {[%emt 0:01:52]} ({Better is} 29. Qb5 $18) 29... Bf8 $16 {[%emt 0:00:16]} 30. Kh1 {[%emt 0:05:58] Weighted Error Value: White=0.13 (very precise) /Black=0.18 (very precise)} ({But not} 30. Rxd4 $2 Rxd4 31. Qc2 (31. Qxd4 $2 {is the wrong capture.} Bc5 $19) 31... Rfd7 $19) 1/2-1/2